[Event "Titled Tuesday Blitz November 22 Early 2022"]
[White "Zainullina, Nataliya"]
[Black "Mujumdar, Sameer"]
[WhiteFideId "4145488"]
[BlackFideId "2029707"]
[WhiteElo "2102"]
[BlackElo "2104"]
[Result "0-1"]
[Round "01"]
[TimeControl "180+1"]
[Date "2022.11.23"]
[WhiteClock "0:00:07"]
[BlackClock "0:01:14"]

1. Nf3 {[%clk 0:02:50]}  Nf6 {[%clk 0:02:55]} 2. c4 {[%clk 0:02:50]}  e6 {[%clk 0:02:52]} 3. g3 {[%clk 0:02:49]}  d5 {[%clk 0:02:52]} 4. d4 {[%clk 0:02:49]}  Be7 {[%clk 0:02:52]} 5. Bg2 {[%clk 0:02:50]}  O-O {[%clk 0:02:53]} 6. O-O {[%clk 0:02:50]}  c6 {[%clk 0:02:52]} 7. Nc3 {[%clk 0:02:50]}  Nbd7 {[%clk 0:02:53]} 8. Nd2 {[%clk 0:02:49]}  Re8 {[%clk 0:02:37]} 9. e4 {[%clk 0:02:49]}  dxe4 {[%clk 0:02:35]} 10. Ndxe4 {[%clk 0:02:49]}  Nxe4 {[%clk 0:02:35]} 11. Nxe4 {[%clk 0:02:49]}  Nf6 {[%clk 0:02:36]} 12. Be3 {[%clk 0:02:40]}  Nxe4 {[%clk 0:02:28]} 13. Bxe4 {[%clk 0:02:40]}  Bf6 {[%clk 0:02:28]} 14. Qc2 {[%clk 0:02:18]}  g6 {[%clk 0:02:22]} 15. Rfd1 {[%clk 0:02:17]}  Qe7 {[%clk 0:02:20]} 16. Bg2 {[%clk 0:02:14]}  Bd7 {[%clk 0:02:16]} 17. Qb3 {[%clk 0:02:05]}  b6 {[%clk 0:02:10]} 18. d5 {[%clk 0:02:03]}  Rac8 {[%clk 0:02:04]} 19. d6 {[%clk 0:01:55]}  Qf8 {[%clk 0:02:00]} 20. c5 {[%clk 0:01:47]}  bxc5 {[%clk 0:01:57]} 21. Rab1 {[%clk 0:01:18]}  Bd4 {[%clk 0:01:35]} 22. Bxd4 {[%clk 0:00:51]}  cxd4 {[%clk 0:01:36]} 23. Rxd4 {[%clk 0:00:48]}  c5 {[%clk 0:01:36]} 24. Rdd1 {[%clk 0:00:47]}  Red8 {[%clk 0:01:37]} 25. Qa3 {[%clk 0:00:41]}  Bc6 {[%clk 0:01:35]} 26. Bxc6 {[%clk 0:00:37]}  Rxc6 {[%clk 0:01:36]} 27. d7 {[%clk 0:00:32]}  Rc7 {[%clk 0:01:35]} 28. Qa4 {[%clk 0:00:27]}  Qe7 {[%clk 0:01:33]} 29. Rd2 {[%clk 0:00:20]}  Rcxd7 {[%clk 0:01:32]} 30. Rxd7 {[%clk 0:00:18]}  Qxd7 {[%clk 0:01:33]} 31. Qc4 {[%clk 0:00:17]}  Qd4 {[%clk 0:01:32]} 32. Qa6 {[%clk 0:00:16]}  Qd3 {[%clk 0:01:30]} 33. Qxd3 {[%clk 0:00:16]}  Rxd3 {[%clk 0:01:29]} 34. Rc1 {[%clk 0:00:13]}  Rd2 {[%clk 0:01:29]} 35. Rxc5 {[%clk 0:00:10]}  Rxb2 {[%clk 0:01:29]} 36. Ra5 {[%clk 0:00:11]}  Rb7 {[%clk 0:01:29]} 37. Ra6 {[%clk 0:00:11]}  Kg7 {[%clk 0:01:29]} 38. Kg2 {[%clk 0:00:12]}  h5 {[%clk 0:01:30]} 39. Kf3 {[%clk 0:00:12]}  Kf6 {[%clk 0:01:30]} 40. h4 {[%clk 0:00:13]}  Kf5 {[%clk 0:01:29]} 41. Ra5+ {[%clk 0:00:13]}  e5 {[%clk 0:01:29]} 42. Ra6 {[%clk 0:00:12]}  f6 {[%clk 0:01:29]} 43. Ra5 {[%clk 0:00:11]}  g5 {[%clk 0:01:26]} 44. hxg5 {[%clk 0:00:11]}  fxg5 {[%clk 0:01:27]} 45. Ra6 {[%clk 0:00:11]}  h4 {[%clk 0:01:22]} 46. gxh4 {[%clk 0:00:11]}  gxh4 {[%clk 0:01:23]} 47. Kg2 {[%clk 0:00:06]}  Rh7 {[%clk 0:01:22]} 48. Kh3 {[%clk 0:00:05]}  Kf4 {[%clk 0:01:23]} 49. Ra3 {[%clk 0:00:05]}  e4 {[%clk 0:01:23]} 50. Kg2 {[%clk 0:00:05]}  h3+ {[%clk 0:01:22]} 51. Kh2 {[%clk 0:00:04]}  Kg4 {[%clk 0:01:17]} 52. Rg3+ {[%clk 0:00:03]}  Kf4 {[%clk 0:01:17]} 53. Ra3 {[%clk 0:00:04]}  Ke5 {[%clk 0:01:16]} 54. Ra4 {[%clk 0:00:03]}  Kf5 {[%clk 0:01:15]} 55. Ra3 {[%clk 0:00:03]}  Kf4 {[%clk 0:01:15]} 56. Ra4 {[%clk 0:00:03]}  Kf3 {[%clk 0:01:15]} 57. Kg1 {[%clk 0:00:02]}  h2+ {[%clk 0:01:15]} 58. Kh1 {[%clk 0:00:03]}  Kxf2 {[%clk 0:01:15]} 59. Rxe4 {[%clk 0:00:03]}  Kg3 {[%clk 0:01:13]} 60. Re3+ {[%clk 0:00:03]}  Kf4 {[%clk 0:01:12]} 61. Ra3 {[%clk 0:00:03]}  Ke4 {[%clk 0:01:12]} 62. Rc3 {[%clk 0:00:01]}  Kd4 {[%clk 0:01:13]} 63. Ra3 {[%clk 0:00:01]}  Kc4 {[%clk 0:01:13]} 64. Ra6 {[%clk 0:00:02]}  Kc3 {[%clk 0:01:13]} 65. Ra5 {[%clk 0:00:02]}  Kb2 {[%clk 0:01:13]} 66. Ra6 {[%clk 0:00:03]}  Rh3 {[%clk 0:01:10]} 67. Ra5 {[%clk 0:00:02]}  Ra3 {[%clk 0:01:10]} 68. Rxa3 {[%clk 0:00:02]}  Kxa3 {[%clk 0:01:10]} 69. Kxh2 {[%clk 0:00:03]}  Kxa2 {[%clk 0:01:11]} 70. Kg2 {[%clk 0:00:03]}  a5 {[%clk 0:01:11]} 71. Kf3 {[%clk 0:00:04]}  a4 {[%clk 0:01:12]} 72. Ke2 {[%clk 0:00:04]}  a3 {[%clk 0:01:12]} 73. Kd2 {[%clk 0:00:05]}  Kb2 {[%clk 0:01:13]} 74. Kd3 {[%clk 0:00:05]}  a2 {[%clk 0:01:13]} 75. Kc4 {[%clk 0:00:06]}  a1=Q {[%clk 0:01:13]} 76. Kb4 {[%clk 0:00:06]}  Qa3+ {[%clk 0:01:14]} 77. Kc4 {[%clk 0:00:07]} 0-1


[Site "https://www.chess.com"]

[Event "Titled Tuesday Blitz November 22 Early 2022"]
[White "Zemlyanskii, Ivan"]
[Black "Khamdamova, Afruza"]
[WhiteFideId "24249971"]
[BlackFideId "14210444"]
[WhiteElo "2107"]
[BlackElo "2018"]
[Result "1-0"]
[Round "01"]
[TimeControl "180+1"]
[Date "2022.11.23"]
[WhiteClock "0:02:25"]
[BlackClock "0:00:22"]

1. d4 {[%clk 0:03:00]}  Nf6 {[%clk 0:02:14]} 2. c4 {[%clk 0:03:01]}  e6 {[%clk 0:02:14]} 3. Nf3 {[%clk 0:03:00]}  d5 {[%clk 0:02:14]} 4. g3 {[%clk 0:03:01]}  dxc4 {[%clk 0:02:14]} 5. Bg2 {[%clk 0:03:01]}  c5 {[%clk 0:02:11]} 6. O-O {[%clk 0:03:00]}  Nc6 {[%clk 0:02:11]} 7. Qa4 {[%clk 0:03:00]}  Bd7 {[%clk 0:02:09]} 8. Qxc4 {[%clk 0:02:59]}  b5 {[%clk 0:02:06]} 9. Qd3 {[%clk 0:02:52]}  c4 {[%clk 0:02:05]} 10. Qc2 {[%clk 0:02:52]}  Be7 {[%clk 0:02:01]} 11. a4 {[%clk 0:02:52]}  Nb4 {[%clk 0:01:55]} 12. Qd1 {[%clk 0:02:52]}  a6 {[%clk 0:01:39]} 13. Ne5 {[%clk 0:02:52]}  Nbd5 {[%clk 0:01:25]} 14. Nxd7 {[%clk 0:02:52]}  Nxd7 {[%clk 0:01:22]} 15. Nc3 {[%clk 0:02:47]}  Nxc3 {[%clk 0:01:11]} 16. bxc3 {[%clk 0:02:48]}  Rb8 {[%clk 0:01:08]} 17. Bf4 {[%clk 0:02:47]}  Rc8 {[%clk 0:01:04]} 18. Bb7 {[%clk 0:02:46]}  O-O {[%clk 0:00:38]} 19. axb5 {[%clk 0:02:37]}  axb5 {[%clk 0:00:37]} 20. Bxc8 {[%clk 0:02:36]}  Qxc8 {[%clk 0:00:37]} 21. Ra7 {[%clk 0:02:37]}  Qe8 {[%clk 0:00:30]} 22. Qb1 {[%clk 0:02:35]}  Nf6 {[%clk 0:00:29]} 23. e4 {[%clk 0:02:31]}  Bd8 {[%clk 0:00:22]} 24. Bd6 {[%clk 0:02:29]}  Bb6 {[%clk 0:00:22]} 25. Ra6 {[%clk 0:02:25]} 1-0


[Site "https://www.chess.com"]

[Event "Titled Tuesday Blitz November 22 Early 2022"]
[White "Zierk, Steven"]
[Black "Vlassov, Nikolai"]
[WhiteFideId "2034255"]
[BlackFideId "4103360"]
[WhiteElo "2494"]
[BlackElo "2324"]
[Result "0-1"]
[Round "01"]
[TimeControl "180+1"]
[Date "2022.11.22"]
[WhiteClock "0:00:25"]
[BlackClock "0:00:21"]

1. e4 {[%clk 0:02:59]}  Nc6 {[%clk 0:02:22]} 2. d4 {[%clk 0:02:57]}  d5 {[%clk 0:02:21]} 3. Nc3 {[%clk 0:02:57]}  Nf6 {[%clk 0:02:18]} 4. e5 {[%clk 0:02:56]}  Nd7 {[%clk 0:02:17]} 5. Nxd5 {[%clk 0:02:55]}  Ndb8 {[%clk 0:02:15]} 6. Ne3 {[%clk 0:02:56]}  Qxd4 {[%clk 0:02:14]} 7. Qxd4 {[%clk 0:02:56]}  Nxd4 {[%clk 0:02:14]} 8. f4 {[%clk 0:02:56]}  c6 {[%clk 0:02:05]} 9. Bd3 {[%clk 0:02:51]}  g6 {[%clk 0:02:04]} 10. Ne2 {[%clk 0:02:43]}  Nxe2 {[%clk 0:02:01]} 11. Kxe2 {[%clk 0:02:44]}  Bg7 {[%clk 0:01:58]} 12. a4 {[%clk 0:02:38]}  Nd7 {[%clk 0:01:56]} 13. a5 {[%clk 0:02:30]}  Nc5 {[%clk 0:01:55]} 14. Bc4 {[%clk 0:02:29]}  Be6 {[%clk 0:01:55]} 15. Bd2 {[%clk 0:02:20]}  O-O-O {[%clk 0:01:54]} 16. Rhd1 {[%clk 0:02:03]}  Rhe8 {[%clk 0:01:10]} 17. g3 {[%clk 0:01:46]}  f6 {[%clk 0:01:06]} 18. Bb4 {[%clk 0:01:36]}  Bxc4+ {[%clk 0:01:06]} 19. Nxc4 {[%clk 0:01:37]}  Na6 {[%clk 0:01:06]} 20. Rxd8+ {[%clk 0:01:34]}  Kxd8 {[%clk 0:01:05]} 21. Bc3 {[%clk 0:01:31]}  fxe5 {[%clk 0:00:55]} 22. Bxe5 {[%clk 0:01:18]}  Bf6 {[%clk 0:00:46]} 23. Kf3 {[%clk 0:01:14]}  Nb4 {[%clk 0:00:40]} 24. Rd1+ {[%clk 0:01:12]}  Nd5 {[%clk 0:00:38]} 25. Ne3 {[%clk 0:00:55]}  Bxe5 {[%clk 0:00:37]} 26. fxe5 {[%clk 0:00:56]}  Rf8+ {[%clk 0:00:30]} 27. Ke2 {[%clk 0:00:53]}  Kc7 {[%clk 0:00:27]} 28. Nxd5+ {[%clk 0:00:53]}  cxd5 {[%clk 0:00:28]} 29. Rxd5 {[%clk 0:00:54]}  Rf5 {[%clk 0:00:26]} 30. c4 {[%clk 0:00:46]}  Kc6 {[%clk 0:00:26]} 31. b4 {[%clk 0:00:41]}  a6 {[%clk 0:00:26]} 32. Ke3 {[%clk 0:00:39]}  Rf1 {[%clk 0:00:24]} 33. Rd4 {[%clk 0:00:20]}  Rb1 {[%clk 0:00:23]} 34. c5 {[%clk 0:00:20]}  Rb2 {[%clk 0:00:23]} 35. h3 {[%clk 0:00:19]}  g5 {[%clk 0:00:23]} 36. Kf3 {[%clk 0:00:19]}  h5 {[%clk 0:00:23]} 37. h4 {[%clk 0:00:19]}  Rb3+ {[%clk 0:00:23]} 38. Kf2 {[%clk 0:00:19]}  g4 {[%clk 0:00:23]} 39. e6 {[%clk 0:00:18]}  Rf3+ {[%clk 0:00:23]} 40. Kg2 {[%clk 0:00:18]}  Re3 {[%clk 0:00:23]} 41. Rf4 {[%clk 0:00:17]}  Re2+ {[%clk 0:00:23]} 42. Kf1 {[%clk 0:00:17]}  Rxe6 {[%clk 0:00:24]} 43. Rf5 {[%clk 0:00:17]}  Rf6 {[%clk 0:00:24]} 44. Rxf6+ {[%clk 0:00:17]}  exf6 {[%clk 0:00:25]} 45. Ke2 {[%clk 0:00:18]}  Kb5 {[%clk 0:00:25]} 46. Ke3 {[%clk 0:00:19]}  Kxb4 {[%clk 0:00:26]} 47. Kf4 {[%clk 0:00:20]}  Kxc5 {[%clk 0:00:24]} 48. Kf5 {[%clk 0:00:21]}  b5 {[%clk 0:00:24]} 49. Kg6 {[%clk 0:00:22]}  b4 {[%clk 0:00:24]} 50. Kxh5 {[%clk 0:00:23]}  b3 {[%clk 0:00:25]} 51. Kg6 {[%clk 0:00:23]}  b2 {[%clk 0:00:26]} 52. h5 {[%clk 0:00:24]}  b1=Q+ {[%clk 0:00:26]} 53. Kg7 {[%clk 0:00:25]}  Qb7+ {[%clk 0:00:24]} 54. Kg6 {[%clk 0:00:24]}  Qe4+ {[%clk 0:00:22]} 55. Kxf6 {[%clk 0:00:25]}  Qh7 {[%clk 0:00:21]} 0-1


[Site "https://www.chess.com"]

[Event "Titled Tuesday Blitz November 22 Early 2022"]
[White "Adithya A Chullikkad"]
[Black "Shuvalov, Evgenij"]
[WhiteFideId "45078734"]
[BlackFideId "4187237"]
[WhiteElo "2106"]
[BlackElo "2049"]
[Result "0-1"]
[Round "02"]
[TimeControl "180+1"]
[Date "2022.11.23"]
[WhiteClock "0:00:13"]
[BlackClock "0:00:14"]

1. e4 {[%clk 0:02:46]}  e6 {[%clk 0:02:59]} 2. c4 {[%clk 0:02:45]}  d5 {[%clk 0:02:59]} 3. cxd5 {[%clk 0:02:45]}  exd5 {[%clk 0:03:00]} 4. exd5 {[%clk 0:02:45]}  Nf6 {[%clk 0:03:00]} 5. d4 {[%clk 0:02:44]}  Nxd5 {[%clk 0:02:59]} 6. Bd3 {[%clk 0:02:42]}  Nc6 {[%clk 0:02:59]} 7. Ne2 {[%clk 0:02:27]}  Bg4 {[%clk 0:02:53]} 8. f3 {[%clk 0:02:26]}  Bh5 {[%clk 0:02:52]} 9. O-O {[%clk 0:02:25]}  Be7 {[%clk 0:02:50]} 10. Nbc3 {[%clk 0:02:24]}  O-O {[%clk 0:02:48]} 11. Be4 {[%clk 0:02:18]}  Nf6 {[%clk 0:02:38]} 12. Be3 {[%clk 0:02:13]}  Bg6 {[%clk 0:02:35]} 13. Qa4 {[%clk 0:01:57]}  Nxe4 {[%clk 0:02:26]} 14. fxe4 {[%clk 0:01:55]}  Bg5 {[%clk 0:02:19]} 15. Bxg5 {[%clk 0:01:45]}  Qxg5 {[%clk 0:02:19]} 16. Nf4 {[%clk 0:01:42]}  Rad8 {[%clk 0:02:04]} 17. Nxg6 {[%clk 0:01:39]}  hxg6 {[%clk 0:01:22]} 18. Nd5 {[%clk 0:01:36]}  Rd7 {[%clk 0:01:15]} 19. Rf3 {[%clk 0:01:31]}  Qg4 {[%clk 0:01:06]} 20. Rf4 {[%clk 0:01:17]}  Qe6 {[%clk 0:01:04]} 21. h3 {[%clk 0:00:56]}  Nxd4 {[%clk 0:00:56]} 22. Qxd4 {[%clk 0:00:52]}  c6 {[%clk 0:00:56]} 23. Rf6 {[%clk 0:00:38]}  Rxd5 {[%clk 0:00:41]} 24. exd5 {[%clk 0:00:30]}  Qxf6 {[%clk 0:00:40]} 25. Qxf6 {[%clk 0:00:31]}  gxf6 {[%clk 0:00:41]} 26. dxc6 {[%clk 0:00:31]}  bxc6 {[%clk 0:00:41]} 27. Rc1 {[%clk 0:00:32]}  Rc8 {[%clk 0:00:41]} 28. Rc5 {[%clk 0:00:30]}  Kf8 {[%clk 0:00:40]} 29. Kf2 {[%clk 0:00:26]}  Ke7 {[%clk 0:00:40]} 30. b4 {[%clk 0:00:26]}  Kd6 {[%clk 0:00:40]} 31. Ke3 {[%clk 0:00:20]}  Rb8 {[%clk 0:00:38]} 32. a3 {[%clk 0:00:19]}  Rb5 {[%clk 0:00:38]} 33. Rc3 {[%clk 0:00:18]}  a5 {[%clk 0:00:38]} 34. Rd3+ {[%clk 0:00:17]}  Ke6 {[%clk 0:00:35]} 35. Rc3 {[%clk 0:00:17]}  axb4 {[%clk 0:00:34]} 36. axb4 {[%clk 0:00:15]}  Kd6 {[%clk 0:00:29]} 37. Rc4 {[%clk 0:00:15]}  f5 {[%clk 0:00:27]} 38. Kf4 {[%clk 0:00:14]}  f6 {[%clk 0:00:26]} 39. h4 {[%clk 0:00:14]}  Rd5 {[%clk 0:00:23]} 40. Ke3 {[%clk 0:00:13]}  Rd1 {[%clk 0:00:20]} 41. g3 {[%clk 0:00:13]}  Kd5 {[%clk 0:00:18]} 42. Rc5+ {[%clk 0:00:12]}  Kd6 {[%clk 0:00:18]} 43. Rc4 {[%clk 0:00:13]}  Re1+ {[%clk 0:00:18]} 44. Kf4 {[%clk 0:00:14]}  Rf1+ {[%clk 0:00:18]} 45. Ke3 {[%clk 0:00:14]}  Rg1 {[%clk 0:00:18]} 46. Kf4 {[%clk 0:00:14]}  Re1 {[%clk 0:00:17]} 47. Kf3 {[%clk 0:00:14]}  Kd5 {[%clk 0:00:16]} 48. Rc5+ {[%clk 0:00:13]}  Kd6 {[%clk 0:00:17]} 49. Rc4 {[%clk 0:00:14]}  Re5 {[%clk 0:00:16]} 50. Kf4 {[%clk 0:00:13]}  Rb5 {[%clk 0:00:16]} 51. Ke3 {[%clk 0:00:14]}  Rd5 {[%clk 0:00:15]} 52. Kf4 {[%clk 0:00:14]}  Rb5 {[%clk 0:00:15]} 53. Ke3 {[%clk 0:00:14]}  g5 {[%clk 0:00:16]} 54. h5 {[%clk 0:00:13]}  Rb8 {[%clk 0:00:15]} 55. Rc5 {[%clk 0:00:12]}  Rh8 {[%clk 0:00:13]} 56. Rxf5 {[%clk 0:00:13]}  Ke6 {[%clk 0:00:14]} 57. Rc5 {[%clk 0:00:13]}  Kd6 {[%clk 0:00:14]} 58. g4 {[%clk 0:00:14]}  Re8+ {[%clk 0:00:13]} 59. Kd4 {[%clk 0:00:15]}  Re1 {[%clk 0:00:12]} 60. Rf5 {[%clk 0:00:15]}  Ke6 {[%clk 0:00:12]} 61. Kc5 {[%clk 0:00:15]}  Rc1+ {[%clk 0:00:12]} 62. Kb6 {[%clk 0:00:16]}  Rc4 {[%clk 0:00:12]} 63. h6 {[%clk 0:00:15]}  Rxb4+ {[%clk 0:00:12]} 64. Kc7 {[%clk 0:00:16]}  Rxg4 {[%clk 0:00:12]} 65. Rc5 {[%clk 0:00:16]}  Rh4 {[%clk 0:00:12]} 66. Rxc6+ {[%clk 0:00:17]}  Kf5 {[%clk 0:00:11]} 67. Kd7 {[%clk 0:00:17]}  Rxh6 {[%clk 0:00:11]} 68. Ke7 {[%clk 0:00:17]}  g4 {[%clk 0:00:11]} 69. Rc5+ {[%clk 0:00:17]}  Kf4 {[%clk 0:00:10]} 70. Rc4+ {[%clk 0:00:17]}  Kg5 {[%clk 0:00:10]} 71. Ke6 {[%clk 0:00:18]}  f5+ {[%clk 0:00:10]} 72. Ke5 {[%clk 0:00:16]}  Rh8 {[%clk 0:00:09]} 73. Kd4 {[%clk 0:00:16]}  Re8 {[%clk 0:00:09]} 74. Rc7 {[%clk 0:00:14]}  Kf4 {[%clk 0:00:08]} 75. Rg7 {[%clk 0:00:14]}  Rd8+ {[%clk 0:00:08]} 76. Kc3 {[%clk 0:00:14]}  g3 {[%clk 0:00:08]} 77. Rg6 {[%clk 0:00:14]}  Ke4 {[%clk 0:00:08]} 78. Rxg3 {[%clk 0:00:14]}  f4 {[%clk 0:00:08]} 79. Rg1 {[%clk 0:00:14]}  f3 {[%clk 0:00:09]} 80. Rg7 {[%clk 0:00:15]}  Ke3 {[%clk 0:00:09]} 81. Re7+ {[%clk 0:00:15]}  Kf2 {[%clk 0:00:09]} 82. Rf7 {[%clk 0:00:16]}  Ke2 {[%clk 0:00:09]} 83. Re7+ {[%clk 0:00:16]}  Kf1 {[%clk 0:00:09]} 84. Rh7 {[%clk 0:00:16]}  f2 {[%clk 0:00:09]} 85. Rg7 {[%clk 0:00:16]}  Rd5 {[%clk 0:00:08]} 86. Kc4 {[%clk 0:00:16]}  Rd6 {[%clk 0:00:07]} 87. Kc3 {[%clk 0:00:16]}  Ke2 {[%clk 0:00:07]} 88. Re7+ {[%clk 0:00:16]}  Kf3 {[%clk 0:00:06]} 89. Rf7+ {[%clk 0:00:17]}  Ke3 {[%clk 0:00:07]} 90. Re7+ {[%clk 0:00:17]}  Kf3 {[%clk 0:00:07]} 91. Rf7+ {[%clk 0:00:18]}  Kg2 {[%clk 0:00:08]} 92. Rg7+ {[%clk 0:00:18]}  Kf1 {[%clk 0:00:08]} 93. Re7 {[%clk 0:00:13]}  Rg6 {[%clk 0:00:05]} 94. Re8 {[%clk 0:00:11]}  Kg1 {[%clk 0:00:05]} 95. Re2 {[%clk 0:00:03]}  f1=Q {[%clk 0:00:04]} 96. Rd2 {[%clk 0:00:04]}  Rg3+ {[%clk 0:00:04]} 97. Kc2 {[%clk 0:00:04]}  Rg2 {[%clk 0:00:04]} 98. Kc3 {[%clk 0:00:04]}  Rxd2 {[%clk 0:00:03]} 99. Kxd2 {[%clk 0:00:05]}  Qf2+ {[%clk 0:00:04]} 100. Kc3 {[%clk 0:00:05]}  Kg2 {[%clk 0:00:05]} 101. Kb4 {[%clk 0:00:06]}  Qf3 {[%clk 0:00:06]} 102. Ka5 {[%clk 0:00:07]}  Kg3 {[%clk 0:00:07]} 103. Kb6 {[%clk 0:00:07]}  Qf4 {[%clk 0:00:08]} 104. Ka7 {[%clk 0:00:08]}  Kg4 {[%clk 0:00:09]} 105. Ka8 {[%clk 0:00:09]}  Qf3+ {[%clk 0:00:09]} 106. Ka7 {[%clk 0:00:09]}  Qc6 {[%clk 0:00:09]} 107. Kb8 {[%clk 0:00:10]}  Qd7 {[%clk 0:00:09]} 108. Ka8 {[%clk 0:00:10]}  Kf5 {[%clk 0:00:10]} 109. Kb8 {[%clk 0:00:11]}  Ke5 {[%clk 0:00:11]} 110. Ka8 {[%clk 0:00:12]}  Kd6 {[%clk 0:00:12]} 111. Kb8 {[%clk 0:00:12]}  Kc6 {[%clk 0:00:12]} 112. Ka8 {[%clk 0:00:13]}  Kb6 {[%clk 0:00:13]} 113. Kb8 {[%clk 0:00:13]}  Qb7# {[%clk 0:00:14]} 0-1


[Site "https://www.chess.com"]

[Event "Titled Tuesday Blitz November 22 Early 2022"]
[White "Agasarov, Benik"]
[Black "Fedoseev, Vladimir"]
[WhiteFideId "13314823"]
[BlackFideId "24130737"]
[WhiteElo "2178"]
[BlackElo "2726"]
[Result "0-1"]
[Round "02"]
[TimeControl "180+1"]
[Date "2022.11.22"]
[WhiteClock "0:00:05"]
[BlackClock "0:00:36"]

1. d4 {[%clk 0:03:00]}  d5 {[%clk 0:02:58]} 2. c4 {[%clk 0:03:00]}  c6 {[%clk 0:02:59]} 3. Nf3 {[%clk 0:03:00]}  Nf6 {[%clk 0:02:59]} 4. Nc3 {[%clk 0:03:00]}  dxc4 {[%clk 0:02:59]} 5. a4 {[%clk 0:02:59]}  e6 {[%clk 0:02:59]} 6. e3 {[%clk 0:02:49]}  c5 {[%clk 0:02:59]} 7. Bxc4 {[%clk 0:02:46]}  Be7 {[%clk 0:02:59]} 8. O-O {[%clk 0:02:46]}  O-O {[%clk 0:03:00]} 9. e4 {[%clk 0:02:37]}  cxd4 {[%clk 0:02:59]} 10. Nxd4 {[%clk 0:02:37]}  Qc7 {[%clk 0:03:00]} 11. Qe2 {[%clk 0:02:33]}  a6 {[%clk 0:03:00]} 12. e5 {[%clk 0:02:30]}  Nfd7 {[%clk 0:02:55]} 13. Bf4 {[%clk 0:02:30]}  Nc6 {[%clk 0:02:50]} 14. Nxc6 {[%clk 0:02:14]}  bxc6 {[%clk 0:02:50]} 15. Rfd1 {[%clk 0:02:07]}  a5 {[%clk 0:02:48]} 16. Rac1 {[%clk 0:02:02]}  Rd8 {[%clk 0:02:36]} 17. h3 {[%clk 0:01:31]}  Qb6 {[%clk 0:02:23]} 18. Ne4 {[%clk 0:01:20]}  Ba6 {[%clk 0:02:18]} 19. Bxa6 {[%clk 0:01:18]}  Rxa6 {[%clk 0:02:13]} 20. Be3 {[%clk 0:01:17]}  c5 {[%clk 0:01:49]} 21. Nxc5 {[%clk 0:00:58]}  Nxc5 {[%clk 0:01:48]} 22. Rxd8+ {[%clk 0:00:58]}  Qxd8 {[%clk 0:01:48]} 23. Rxc5 {[%clk 0:00:48]}  Bxc5 {[%clk 0:01:43]} 24. Qxa6 {[%clk 0:00:48]}  Bxe3 {[%clk 0:01:43]} 25. fxe3 {[%clk 0:00:48]}  h5 {[%clk 0:01:44]} 26. Qd6 {[%clk 0:00:45]}  Qc8 {[%clk 0:01:40]} 27. Kh2 {[%clk 0:00:44]}  h4 {[%clk 0:01:30]} 28. Qd4 {[%clk 0:00:40]}  Qb8 {[%clk 0:01:26]} 29. Qc3 {[%clk 0:00:30]}  Qb6 {[%clk 0:01:21]} 30. Qd4 {[%clk 0:00:26]}  Qc7 {[%clk 0:01:14]} 31. Qc3 {[%clk 0:00:25]}  Qd8 {[%clk 0:01:04]} 32. b4 {[%clk 0:00:22]}  axb4 {[%clk 0:00:52]} 33. Qxb4 {[%clk 0:00:23]}  g5 {[%clk 0:00:48]} 34. a5 {[%clk 0:00:22]}  Qc7 {[%clk 0:00:49]} 35. Qb5 {[%clk 0:00:18]}  Qc3 {[%clk 0:00:44]} 36. Qe8+ {[%clk 0:00:10]}  Kg7 {[%clk 0:00:43]} 37. Qb8 {[%clk 0:00:06]}  Qxa5 {[%clk 0:00:41]} 38. Qd6 {[%clk 0:00:04]}  Qc3 {[%clk 0:00:39]} 39. Qd4 {[%clk 0:00:05]}  Qxd4 {[%clk 0:00:36]} 40. exd4 {[%clk 0:00:06]}  Kg6 {[%clk 0:00:36]} 41. g4 {[%clk 0:00:06]}  hxg3+ {[%clk 0:00:32]} 42. Kxg3 {[%clk 0:00:07]}  Kh5 {[%clk 0:00:33]} 43. Kf3 {[%clk 0:00:04]}  Kh4 {[%clk 0:00:33]} 44. Kg2 {[%clk 0:00:03]}  g4 {[%clk 0:00:34]} 45. hxg4 {[%clk 0:00:04]}  Kxg4 {[%clk 0:00:34]} 46. Kf2 {[%clk 0:00:04]}  Kf4 {[%clk 0:00:35]} 47. Kg2 {[%clk 0:00:03]}  Ke4 {[%clk 0:00:35]} 48. Kg3 {[%clk 0:00:04]}  Kxd4 {[%clk 0:00:35]} 49. Kf4 {[%clk 0:00:05]}  Kd5 {[%clk 0:00:36]} 0-1


[Site "https://www.chess.com"]

[Event "Titled Tuesday Blitz November 22 Early 2022"]
[White "Aizpurua, Patrick Emilio"]
[Black "Vakhlamov, Igor L."]
[WhiteFideId "6600522"]
[BlackFideId "24126748"]
[WhiteElo "2378"]
[BlackElo "2401"]
[Result "1-0"]
[Round "02"]
[TimeControl "180+1"]
[Date "2022.11.23"]
[WhiteClock "0:00:26"]
[BlackClock "0:00:17"]

1. d4 {[%clk 0:03:00]}  d5 {[%clk 0:03:00]} 2. c4 {[%clk 0:03:00]}  e6 {[%clk 0:03:00]} 3. Nf3 {[%clk 0:03:00]}  Nf6 {[%clk 0:03:00]} 4. g3 {[%clk 0:02:58]}  c5 {[%clk 0:03:00]} 5. cxd5 {[%clk 0:02:57]}  cxd4 {[%clk 0:03:00]} 6. dxe6 {[%clk 0:02:55]}  Bxe6 {[%clk 0:03:01]} 7. Qxd4 {[%clk 0:02:55]}  Nc6 {[%clk 0:03:01]} 8. Qa4 {[%clk 0:02:53]}  a6 {[%clk 0:02:05]} 9. Bg2 {[%clk 0:02:52]}  b5 {[%clk 0:02:05]} 10. Qh4 {[%clk 0:02:51]}  Be7 {[%clk 0:01:59]} 11. O-O {[%clk 0:02:50]}  O-O {[%clk 0:01:59]} 12. Ng5 {[%clk 0:02:38]}  Bd5 {[%clk 0:01:37]} 13. e4 {[%clk 0:02:37]}  Bc4 {[%clk 0:01:36]} 14. Re1 {[%clk 0:02:23]}  h6 {[%clk 0:01:34]} 15. Nf3 {[%clk 0:02:13]}  Nb4 {[%clk 0:01:13]} 16. Na3 {[%clk 0:01:42]}  Nd3 {[%clk 0:01:13]} 17. Rd1 {[%clk 0:01:29]}  Nd5 {[%clk 0:01:11]} 18. Qh5 {[%clk 0:01:25]}  Bxa3 {[%clk 0:01:08]} 19. exd5 {[%clk 0:01:19]}  Bc5 {[%clk 0:01:06]} 20. Be3 {[%clk 0:01:17]}  Bxe3 {[%clk 0:01:05]} 21. fxe3 {[%clk 0:01:18]}  Qb6 {[%clk 0:01:01]} 22. Nd4 {[%clk 0:01:06]}  Nxb2 {[%clk 0:00:54]} 23. Rd2 {[%clk 0:01:04]}  Nd3 {[%clk 0:00:54]} 24. Rad1 {[%clk 0:01:04]}  Nb4 {[%clk 0:00:45]} 25. Nf5 {[%clk 0:01:02]}  g6 {[%clk 0:00:31]} 26. Qxh6 {[%clk 0:00:59]}  Qf6 {[%clk 0:00:27]} 27. Rf2 {[%clk 0:00:43]}  Rfe8 {[%clk 0:00:20]} 28. d6 {[%clk 0:00:41]}  Rad8 {[%clk 0:00:20]} 29. Rd4 {[%clk 0:00:38]}  Qh8 {[%clk 0:00:18]} 30. Ne7+ {[%clk 0:00:35]}  Rxe7 {[%clk 0:00:18]} 31. Qxh8+ {[%clk 0:00:29]}  Kxh8 {[%clk 0:00:19]} 32. dxe7 {[%clk 0:00:30]}  Re8 {[%clk 0:00:17]} 33. Rd8 {[%clk 0:00:30]}  Nd5 {[%clk 0:00:12]} 34. Rxe8+ {[%clk 0:00:29]}  Kg7 {[%clk 0:00:13]} 35. Bxd5 {[%clk 0:00:29]}  Bxd5 {[%clk 0:00:13]} 36. Rd8 {[%clk 0:00:29]}  b4 {[%clk 0:00:14]} 37. Rxd5 {[%clk 0:00:29]}  b3 {[%clk 0:00:15]} 38. axb3 {[%clk 0:00:29]}  a5 {[%clk 0:00:15]} 39. Rxa5 {[%clk 0:00:28]}  f5 {[%clk 0:00:15]} 40. e8=Q {[%clk 0:00:28]}  f4 {[%clk 0:00:16]} 41. Qe7+ {[%clk 0:00:28]}  Kh6 {[%clk 0:00:16]} 42. Qh4+ {[%clk 0:00:25]}  Kg7 {[%clk 0:00:16]} 43. Ra7+ {[%clk 0:00:26]}  Kg8 {[%clk 0:00:17]} 44. Qd8# {[%clk 0:00:26]} 1-0


[Site "https://www.chess.com"]